Workbook

Sheet Summary sheet
A2: Funding Schedule
A3: Particulars | C3: Year 1 | D3: Year2 | E3: Year 3 | F3: Year 4 | G3: Year 5
A5: Funding Ask:
A6: Application Development Cost | C6: ='Income Statement '!E45 -> 1000000 | D6: ='Income Statement '!F45 -> 1400000 | E6: ='Income Statement '!G45 -> 1960000 | F6: ='Income Statement '!H45 -> 2744000 | G6: ='Income Statement '!I45 -> 3841600
A7: Working Capital | C7: ='Balance Sheet'!C33 -> 6182761.741 | D7: ='Balance Sheet'!D33 -> 63960671.71 | E7: ='Balance Sheet'!E33 -> 263414127.6 | F7: ='Balance Sheet'!F33 -> 678374543.2 | G7: ='Balance Sheet'!G33 -> 1475365945
A8: Marketing | C8: ='Income Statement '!E48 -> 1200000
A9: Manpower Cost | C9: ='Income Statement '!E47 -> 5280000 | D9: ='Manpower Expense'!H11 -> 7488000 | E9: ='Manpower Expense'!K11 -> 10972800 | F9: ='Manpower Expense'!N11 -> 16606080 | G9: ='Manpower Expense'!Q11 -> 25934688
A10: Contingency Funds
A11: TOTAL FUNDS REQUIRED | C11: =SUM(C6:C10) -> 13662761.74 | D11: =SUM(D6:D10) -> 72848671.71 | E11: 276346927.6 | F11: 697724623.2 | G11: 1505142233
A12: In Million Dollars | E12: M&A | G12: M&A
A13: Equity
A14: Opening Equity
A15: Owner's Equity Infusion
A16: Equity Raise | C16: =C11 -> 13662761.74 | D16: =D11 -> 72848671.71 | E16: =E11 -> 276346927.6 | F16: =F11 -> 697724623.2 | G16: =G11 -> 1505142233
A17: Re-payment
A18: Closing Equity | C18: =SUM(C14:C17) -> 13662761.74 | D18: =SUM(D14:D17) -> 72848671.71 | E18: 276346927.6 | F18: 697724623.2 | G18: 1505142233
A20: Debt
A21: Opening Debt
A22: Debt Raised
A23: Interest | B23: 0.12
A24: Principle Repayment
A25: Closing Debt
A27: Working Capital
A28: Particulars | C28: Year 1 | D28: Year 2 | E28: Year 3 | F28: Year 4 | G28: Year 5
A29: Credit Sales | B29: 0.5
A30: Receivables Days | B30: 30
A31: Inventory Days | B31: 45
A32: Payables Days | B32: 30
A33: Cash in Bank
A34: Total No of Days | B34: 365
A36: Change in Working Capital
A39: End of Sheet

Sheet Income Statement
B5: Total Addressable and Target Market
B6: Revenue Streams | C6: Industry Growth Rate | E6: Projected TAM
D7: Existing facilities 2023 | E7: 2025-26 | F7: 2026-27 | G7: 2027-28 | H7: 2028-29 | I7: 2029-30
B8: Co-operative Housing Societies | C8: 0.05 | D8: 92000 | E8: =D8*(1+$C8) -> 96600 | F8: =E8*(1+$C8) -> 101430 | G8: =F8*(1+$C8) -> 106501.5 | H8: =G8*(1+$C8) -> 111826.575 | I8: =H8*(1+$C8) -> 117417.9038
B9: Facility Management | C9: 0.02 | D9: 347 | E9: =D9*(1+$C9) -> 353.94 | F9: =E9*(1+$C9) -> 361.0188 | G9: =F9*(1+$C9) -> 368.239176 | H9: =G9*(1+$C9) -> 375.6039595 | I9: =H9*(1+$C9) -> 383.1160387
B10: Hotels | C10: 0.01 | D10: 1547 | E10: =D10*(1+$C10) -> 1562.47 | F10: =E10*(1+$C10) -> 1578.0947 | G10: =F10*(1+$C10) -> 1593.875647 | H10: =G10*(1+$C10) -> 1609.814403 | I10: =H10*(1+$C10) -> 1625.912548
B11: Private Hospitals | C11: 0.0368 | D11: 43486 | E11: =D11*(1+$C11) -> 45086.2848 | F11: =E11*(1+$C11) -> 46745.46008 | G11: =F11*(1+$C11) -> 48465.69301 | H11: =G11*(1+$C11) -> 50249.23051 | I11: =H11*(1+$C11) -> 52098.4022
B12: Private Schools | C12: 0.04 | D12: 34753 | E12: =D12*(1+$C12) -> 36143.12 | F12: =E12*(1+$C12) -> 37588.8448 | G12: =F12*(1+$C12) -> 39092.39859 | H12: =G12*(1+$C12) -> 40656.09454 | I12: =H12*(1+$C12) -> 42282.33832
B13: Industrial Establishments | C13: 0.05 | D13: 246504 | E13: =D13*(1+$C13) -> 258829.2 | F13: =E13*(1+$C13) -> 271770.66 | G13: =F13*(1+$C13) -> 285359.193 | H13: =G13*(1+$C13) -> 299627.1527 | I13: =H13*(1+$C13) -> 314608.5103
A14: A | B14: Total Addressable Market | D14: =SUM(D8:D13) -> 418637 | E14: =SUM(E8:E13) -> 438575.0148 | F14: =SUM(F8:F13) -> 459474.0784 | G14: =SUM(G8:G13) -> 481380.8994 | H14: =SUM(H8:H13) -> 504344.4711 | I14: =SUM(I8:I13) -> 528416.1831
A15: B | B15: Target Market - 5% of TAM | E15: =E14*5% -> 21928.75074 | F15: =F14*5% -> 22973.70392 | G15: =G14*5% -> 24069.04497 | H15: =H14*5% -> 25217.22355 | I15: =I14*5% -> 26420.80916
B18: New Customer Conversion Rate
B19: Particular | C19: Growth Rate | E19: Year 1 | F19: Year 2 | G19: Year 3 | H19: Year 4 | I19: Year 5
B20: Conversion Rate | C20: 0.35 | E20: 0.0065 | F20: 0.015 | G20: 0.02 | H20: 0.03 | I20: 0.04
B21: Total New customers added | E21: =E15*E20 -> 142.5368798 | F21: =F15*F20 -> 344.6055588 | G21: =G15*G20 -> 481.3808994 | H21: =H15*H20 -> 756.5167066 | I21: =I15*I20 -> 1056.832366
B23: Total Customers
B24: Particular | C24: Growth Rate | D24: Initial Acquistion Rate | E24: Year 1 | F24: Year 2 | G24: Year 3 | H24: Year 4 | I24: Year 5
B25: New Customers | E25: =E21 -> 142.5368798 | F25: 344.6055588 | G25: 481.3808994 | H25: 756.5167066 | I25: 1056.832366
B26: Old Customers (Retention Rate - 53%) | F26: =E27*53% -> 75.5445463 | G26: =F27*68% -> 285.7020715 | H26: =G27*70% -> 536.9580796 | I26: =H27*75% -> 970.1060897
A27: C | B27: Total Customers | E27: =E25 -> 142.5368798 | F27: =F25+F26 -> 420.1501051 | G27: 767.0829709 | H27: 1293.474786 | I27: 2026.938456
B29: Budgeted Sales per Customer
B30: Particular | C30: Growth Rate | E30: Year 1 | F30: Year 2 | G30: Year 3 | H30: Year 4 | I30: Year 5
A31: D | B31: AOV | C31: 0.2 | E31: 600000 | F31: 900000 | G31: 1200000 | H31: 1500000 | I31: 1800000
B33: Revenue
B34: Particular | C34: Formula | E34: Year 1 | F34: Year 2 | G34: Year 3 | H34: Year 4 | I34: Year 5
A35: E | B35: Revenue | C35: Target Market*Conversion Rate* AOV | E35: =E27*E31 -> 85522127.89 | F35: =F27*F31 -> 378135094.6 | G35: 920499565.1 | H35: 1940212179 | I35: 3648489221
B36: Revenue in Dollar Millions | E36: =E35/85000000 -> 1.006142681 | F36: 4.448648171 | G36: 10.82940665 | H36: 22.82602564 | I36: 42.9234026
B37: Growth Rate of Revenue | F37: =(F35-E35)/E35 -> 3.421488379 | G37: 1.434314028 | H37: 1.107781745 | I37: 0.8804588795
B40: Expenses
B41: Particular | C41: Rationaile | D41: Growth Rate | E41: Year 1 | F41: Year 2 | G41: Year 3 | H41: Year 4 | I41: Year 5
B42: Cost of Goods Sold | C42: 80% of Revenue | E42: =E35*80% -> 68417702.31 | F42: =F35*79% -> 298726724.7 | G42: =G35*75% -> 690374673.8 | H42: =H35*75% -> 1455159134 | I42: =I35*75% -> 2736366916
B43: Logistics / Shipping | C43: 3% of Revenue | E43: =E35*3% -> 2565663.837 | F43: 11344052.84 | G43: 27614986.95 | H43: 58206365.38 | I43: 109454676.6
B44: Rental Expenses | D44: 0.2 | E44: =30000*12 -> 360000 | F44: =E44*(1+$D$44) -> 432000 | G44: 518400 | H44: 622080 | I44: 746496
B45: Software Development | D45: 0.4 | E45: 1000000 | F45: =E45*(1+$D$45) -> 1400000 | G45: 1960000 | H45: 2744000 | I45: 3841600
B46: Laptop Rentals | D46: 0.07 | E46: =1800*12*10 -> 216000 | F46: =E46*(1+$D46) -> 231120 | G46: 247298.4 | H46: 264609.288 | I46: 283131.9382
B47: Manpower Cost | D47: 5 to 7% | E47: ='Manpower Expense'!E11 -> 5280000 | F47: ='Manpower Expense'!H11 -> 7488000 | G47: ='Manpower Expense'!G11 -> 0 | H47: ='Manpower Expense'!H11 -> 7488000 | I47: ='Manpower Expense'!I11 -> 0
B48: Marketing expenses | E48: 1200000 | F48: ='Marketing Expense'!E7 -> 420287.0592 | G48: ='Marketing Expense'!H7 -> 0 | H48: ='Marketing Expense'!E7 -> 420287.0592 | I48: ='Marketing Expense'!F7 -> 440346.8193
B49: Other Utility & Supply Expenses | D49: 0.05 | E49: 300000 | F49: =E49*(1+$D49) -> 315000 | G49: 330750 | H49: 347287.5 | I49: 364651.875
A50: F | B50: Total Expenses | E50: =SUM(E42:E49) -> 79339366.15 | F50: 320357184.6 | G50: 721046109.1 | H50: 1525251764 | I50: 2851497819
A52: G | B52: EBITDA / EBIT | E52: =E35-E50 -> 6182761.741 | F52: 57777909.96 | G52: 199453455.9 | H52: 414960415.6 | I52: 796991401.9
B53: Interest | E53: =Equity_Debt!D14 -> 0 | F53: =Equity_Debt!E14 -> 0 | G53: =Equity_Debt!F14 -> 0 | H53: =Equity_Debt!G14 -> 0 | I53: =Equity_Debt!H14 -> 0
A54: H | B54: PBT | E54: =E52-E53 -> 6182761.741 | F54: 57777909.96 | G54: 199453455.9 | H54: 414960415.6 | I54: 796991401.9
B55: Tax | C55: Tax Rate | D55: 0.26 | E55: =E54*26% -> 1607518.053 | F55: 15022256.59 | G55: 51857898.54 | H55: 107889708.1 | I55: 207217764.5
A56: I | B56: PAT | E56: =E54-E55 -> 4575243.688 | F56: 42755653.37 | G56: 147595557.4 | H56: 307070707.5 | I56: 589773637.4

Sheet Cash Flow
B3: Particulars | C3: Year 1 | D3: Year 2 | E3: Year 3 | F3: Year 4 | G3: Year 5
B4: EBITA | C4: ='Income Statement '!E52 -> 6182761.741 | D4: ='Income Statement '!F52 -> 57777909.96 | E4: ='Income Statement '!G52 -> 199453455.9 | F4: ='Income Statement '!H52 -> 414960415.6 | G4: ='Income Statement '!I52 -> 796991401.9
A5: For CY | B5: Debtors (Outstanding Receivables) | C5: ='Debtors and Creditors'!C7 -> 3514607.995 | D5: ='Debtors and Creditors'!D7 -> 15539798.41 | E5: ='Debtors and Creditors'!E7 -> 37828749.25 | F5: ='Debtors and Creditors'!F7 -> 79734747.1 | G5: ='Debtors and Creditors'!G7 -> 149937913.2
A6: For CY | B6: Creditors (Payables) | C6: ='Debtors and Creditors'!C8 -> 7497830.39 | D6: ='Debtors and Creditors'!D8 -> 32737175.31 | E6: ='Debtors and Creditors'!E8 -> 75657498.5 | F6: ='Debtors and Creditors'!F8 -> 159469494.2 | G6: ='Debtors and Creditors'!G8 -> 299875826.4
A7: For PY | B7: Debtors (Outstanding Receivables) | D7: =C5 -> 3514607.995 | E7: 15539798.41 | F7: 37828749.25 | G7: 79734747.1
A8: For PY | B8: Creditors (Payables) | D8: =C6 -> 7497830.39 | E8: 32737175.31 | F8: 75657498.5 | G8: 159469494.2
B9: A. Cash Flow from Operations | C9: =C4-C5+C6+C7-C8 -> 10165984.14 | D9: 70992064.47 | E9: 220084828.3 | F9: 456866413.4 | G9: 867194568
B10: Cash Flow from Investing Activities
B11: Product Developement Cost | C11: 0 | D11: 0 | E11: 0 | F11: 0 | G11: 0
B12: Tangible Assets | C12: 0 | D12: 0 | E12: 0 | F12: 0 | G12: 0
B13: Intangible Assets | C13: 0 | D13: 0 | E13: 0 | F13: 0 | G13: 0
B14: B.Net Cash Flow from Investing Activities | C14: =SUM(C11:C13) -> 0 | D14: 0 | E14: 0 | F14: 0 | G14: 0
B15: Cash Flow from Financing Activities
B16: Equity Shares | C16: =Equity_Debt!D6+Equity_Debt!D7-Equity_Debt!D8 -> 0 | G16: =Equity_Debt!H6+Equity_Debt!H7-Equity_Debt!H8 -> 0
B17: Long term Borrowings | C17: =Equity_Debt!D13 -> 0 | D17: =Equity_Debt!E13 -> 0 | E17: =Equity_Debt!F13 -> 0 | F17: =Equity_Debt!G13 -> 0 | G17: =Equity_Debt!H13 -> 0
B18: Loan Repaid | C18: =Equity_Debt!D15 -> 0 | D18: =Equity_Debt!E15 -> 0 | E18: =Equity_Debt!F15 -> 0 | F18: =Equity_Debt!G15 -> 0 | G18: =Equity_Debt!H15 -> 0
B19: Interest Paid | C19: =Equity_Debt!D16 -> 0 | D19: =Equity_Debt!E16 -> 0 | E19: =Equity_Debt!F16 -> 0 | F19: =Equity_Debt!G16 -> 0 | G19: =Equity_Debt!H16 -> 0
B20: C. Cash Flow from Financing Activities | C20: =SUM(C16:C19) -> 0 | D20: 0 | E20: 0 | F20: 0 | G20: 0
B21: Cash Generated During the Year | C21: =C9+C14+C20 -> 10165984.14 | D21: 70992064.47 | E21: 220084828.3 | F21: 456866413.4 | G21: 867194568
B22: Opening Balance Of Cash | C22: 0 | D22: =C23 -> 10165984.14 | E22: 81158048.61 | F22: 301242876.9 | G22: 758109290.3
B23: Closing Balance | C23: =C21+C22 -> 10165984.14 | D23: 81158048.61 | E23: 301242876.9 | F23: 758109290.3 | G23: 1625303858

Sheet Debtors and Creditors
B2: Inventory Days | C2: 0
B3: Receivable Days | C3: 15
B4: Payable Days | C4: 40
B6: Particulars | C6: Year 1 | D6: Year 2 | E6: Year 3 | F6: Year 4 | G6: Year 5
B7: Receivalble amount | C7: =$C$3*'Income Statement '!E35/365 -> 3514607.995 | D7: =$C$3*'Income Statement '!F35/365 -> 15539798.41 | E7: =$C$3*'Income Statement '!G35/365 -> 37828749.25 | F7: =$C$3*'Income Statement '!H35/365 -> 79734747.1 | G7: =$C$3*'Income Statement '!I35/365 -> 149937913.2
B8: Payables Amount | C8: ='Income Statement '!E42*'Debtors and Creditors'!$C$4/365 -> 7497830.39 | D8: ='Income Statement '!F42*'Debtors and Creditors'!$C$4/365 -> 32737175.31 | E8: ='Income Statement '!G42*'Debtors and Creditors'!$C$4/365 -> 75657498.5 | F8: ='Income Statement '!H42*'Debtors and Creditors'!$C$4/365 -> 159469494.2 | G8: ='Income Statement '!I42*'Debtors and Creditors'!$C$4/365 -> 299875826.4

Sheet Balance Sheet
B2: Balance Sheet
B3: Equity & Liabilities | C3: Year 1 | D3: Year 2 | E3: Year 3 | F3: Year 4 | G3: Year 5
B4: Sources of Funds
B5: Shareholder's Equity
B6: Share Capital | C6: =Equity_Debt!D9 -> 0 | D6: =Equity_Debt!E9 -> 0 | E6: =Equity_Debt!F9 -> 0 | F6: =Equity_Debt!G9 -> 0 | G6: =Equity_Debt!H9 -> 0
B7: Reserves & Surplus | C7: ='Income Statement '!E56 -> 4575243.688 | D7: ='Income Statement '!F56 -> 42755653.37 | E7: ='Income Statement '!G56 -> 147595557.4 | F7: ='Income Statement '!H56 -> 307070707.5 | G7: ='Income Statement '!I56 -> 589773637.4
A8: A | B8: Total Shareholder's Equity | C8: =C6+C7 -> 4575243.688 | D8: 42755653.37 | E8: 147595557.4 | F8: 307070707.5 | G8: 589773637.4
B9: Liabilities
A10: B | B10: Long Term Borrowing | C10: =Equity_Debt!D17 -> 0 | D10: =Equity_Debt!E17 -> 0 | E10: =Equity_Debt!F17 -> 0 | F10: =Equity_Debt!G17 -> 0 | G10: =Equity_Debt!H17 -> 0
B11: Current liabilities:
B12: Trade Paybles | C12: ='Debtors and Creditors'!C8 -> 7497830.39 | D12: ='Debtors and Creditors'!D8 -> 32737175.31 | E12: ='Debtors and Creditors'!E8 -> 75657498.5 | F12: ='Debtors and Creditors'!F8 -> 159469494.2 | G12: ='Debtors and Creditors'!G8 -> 299875826.4
B13: Other Payables | C13: 0 | D13: 0 | E13: 0 | F13: 0 | G13: 0
B14: Short Term Provision | C14: 0 | D14: 0 | E14: 0 | F14: 0 | G14: 0
A15: C | B15: Total Current Liabilities | C15: =SUM(C12:C14) -> 7497830.39 | D15: 32737175.31 | E15: 75657498.5 | F15: 159469494.2 | G15: 299875826.4
B16: Total Liabilities | C16: =C8+C10+C15 -> 12073074.08 | D16: 75492828.69 | E16: 223253055.9 | F16: 466540201.7 | G16: 889649463.8
B17: Assets
B18: Non-Current Assets
B19: Tangible Assets | C19: 0 | D19: 0 | E19: 0 | F19: 0 | G19: 0
B20: Intangible Assets | C20: ='Intangible Asset'!C7 -> 15000000 | D20: ='Intangible Asset'!D7 -> 15000000 | E20: ='Intangible Asset'!E7 -> 15000000 | F20: ='Intangible Asset'!F7 -> 15000000 | G20: ='Intangible Asset'!G7 -> 15000000
A21: D | B21: Total Non-current assets | C21: =SUM(C19:C20) -> 15000000 | D21: 15000000 | E21: 15000000 | F21: 15000000 | G21: 15000000
B22: Current Assets
B23: Inventory | C23: 0 | D23: 0 | E23: 0 | F23: 0 | G23: 0
B24: Receivables | C24: ='Debtors and Creditors'!C7 -> 3514607.995 | D24: ='Debtors and Creditors'!D7 -> 15539798.41 | E24: ='Debtors and Creditors'!E7 -> 37828749.25 | F24: ='Debtors and Creditors'!F7 -> 79734747.1 | G24: ='Debtors and Creditors'!G7 -> 149937913.2
B25: Cash & Bank Balance | C25: ='Cash Flow'!C23 -> 10165984.14 | D25: ='Cash Flow'!D23 -> 81158048.61 | E25: ='Cash Flow'!E23 -> 301242876.9 | F25: ='Cash Flow'!F23 -> 758109290.3 | G25: ='Cash Flow'!G23 -> 1625303858
B26: Other Current Assets | C26: 0 | D26: 0 | E26: 0 | F26: 0 | G26: 0
B27: Total Current Assets | C27: =SUM(C23:C26) -> 13680592.13 | D27: 96697847.02 | E27: 339071626.1 | F27: 837844037.4 | G27: 1775241771
B28: Total Assets | C28: =C21+C27 -> 28680592.13 | D28: 111697847 | E28: 354071626.1 | F28: 852844037.4 | G28: 1790241771
B29: =#REF! ->  | C29: =C27+C21 -> 28680592.13 | D29: 111697847 | E29: 354071626.1 | F29: 852844037.4 | G29: 1790241771
C30: =C16-C28 -> -16607518.05 | D30: -36205018.33 | E30: -130818570.2 | F30: -386303835.7 | G30: -900592307.7
B31: End of Sheet
B33: Working Capital | C33: =C27-C15 -> 6182761.741 | D33: 63960671.71 | E33: 263414127.6 | F33: 678374543.2 | G33: 1475365945

Sheet Intangible Asset
A1: Software Application | C1: Year 1 | D1: Year 2 | E1: Year 3 | F1: Year 4 | G1: Year 5
A2: Cost | B2: 15000000
A3: Rate of Depreciation | B3: 0
A4: Opening Balance | C4: 0 | D4: 15000000 | E4: 15000000 | F4: 15000000 | G4: 15000000
A5: Addition | C5: 15000000 | D5: 0 | E5: 0 | F5: 0 | G5: 0
A6: Depreciation | C6: 0 | D6: 0 | E6: 0 | F6: 0 | G6: 0
A7: Closing Balance | C7: 15000000 | D7: 15000000 | E7: 15000000 | F7: 15000000 | G7: 15000000

Sheet Equity_Debt (hidden)
D3: 2025-2026 | E3: 2026-2027 | F3: 2027-2028 | G3: 2028-29 | H3: 2029-30
C4: Equity
C5: Opening Equity
C6: Owner's Equity Infusion
C7: Equity Raise
C8: Re-payment
C9: Closing Equity
C11: Debt
C12: Opening Debt
C13: Debt Raised
C14: Interest Due
C15: Principle Repayment
C16: Interest repaid
C17: Closing Debt

Sheet Total Addressable Market (hidden)
A1: Total Addressable and Target Market
A2: Revenue Streams | B2: Industry Growth Rate | D2: Projected TAM
C3: Existing facilities 2023 | D3: 2025-26 | E3: 2026-27 | F3: 2027-28 | G3: 2028-29 | H3: 2029-30
A4: Co-operative Housing Societies | B4: 0.05 | C4: 92000 | D4: =C4*(1+$C4) -> 8464092000 | E4: 778704928092000 | F4: 7.164163209e+19 | G4: 6.591101794e+24 | H4: 6.063879561e+29
A5: Facility Management | B5: 0.02 | C5: 347 | D5: =C5*(1+$C5) -> 120756 | E5: 42023088 | F5: 14624034624 | G5: 5089164049152 | H5: 1771029089104896
A6: Hotels | B6: 0.01 | C6: 1547 | D6: =C6*(1+$C6) -> 2394756 | E6: 3707082288 | F6: 5738563381824 | G6: 8883296115063552 | H6: 1.375134239e+19
A7: Private Hospitals | B7: 0.0368 | C7: 43486 | D7: =C7*(1+$C7) -> 1891075682 | E7: 82237208183134 | F7: 3.576249472e+18 | G7: 1.555203608e+23 | H7: 6.76311393e+27
A8: Private Schools | B8: 0.04 | C8: 34753 | D8: =C8*(1+$C8) -> 1207805762 | E8: 41976081452548 | F8: 1.458836735e+18 | G8: 5.070041188e+22 | H8: 1.762042115e+27
A9: Industrial Establishments | B9: 0.05 | C9: 246504 | D9: =C9*(1+$C9) -> 60764468520 | E9: 1.497874531e+16 | F9: 3.692335613e+21 | G9: 9.101791903e+26 | H9: 2.243637213e+32
A10: Total Addressable Market | C10: =SUM(C4:C9) -> 418637 | D10: 72329957476 | E10: 1.588166728e+16 | F10: 3.769012337e+21 | G10: 9.169765129e+26 | H10: 2.249786344e+32
A11: Target Market - 5% of TAM | D11: =D10*5% -> 3616497874 | E11: 794083363967783 | F11: 1.884506169e+20 | G11: 4.584882565e+25 | H11: 1.124893172e+31

Sheet Customer Conversion Rate (hidden)
A1: Conversion Rates
A2: Conversion Rates | B2: Ratio | C2: Growth Rate | D2: 2025-26
A3: Digital Media Marketing: | B3: 2 | C3: 0.1 | D3: 0.01
A4: Word of Mouth Marketing: | B4: 3 | C4: 0.3 | D4: 0.02
A5: Offline Marketing: | B5: 3 | C5: 0.3 | D5: 0.0075
C6: =((C3*$B3)+(C4*$B4)+($B5*C5))/8 -> 0.25 | D6: 0.0128125

Sheet Budgeted Sales per Customer
A3: Particulars | B3: Budgeted Sales for 2025-26 per customer | C3: TAM | D3: Adjusting Sales to TAM
A4: Co-operative Housing Societies | B4: =100000*12 -> 1200000 | C4: ='Income Statement '!E8 -> 96600 | D4: =B4/$C$10*C4 -> 264310.5423
A5: Facility Management | B5: =(25000000*12) -> 300000000 | C5: ='Income Statement '!E9 -> 353.94 | D5: 242106.8151
A6: Hotels | B6: =1000000*12 -> 12000000 | C6: ='Income Statement '!E10 -> 1562.47 | D6: 42751.27257
A7: Private Hospitals | B7: =70000*12 -> 840000 | C7: ='Income Statement '!E11 -> 45086.2848 | D7: 86353.48106
A8: Private Schools | B8: =30000*12 -> 360000 | C8: ='Income Statement '!E12 -> 36143.12 | D8: 29667.72561
A9: Industrial Establishments | B9: =100000*12 -> 1200000 | C9: ='Income Statement '!E13 -> 258829.2 | D9: 708191.3687
C10: =SUM(C4:C9) -> 438575.0148 | D10: 1373381.205

Sheet Manpower Expense
B2: Manpower Cost
C3: 2025-26 | F3: 2026-27 | I3: 2027-28 | L3: 2028-29 | O3: 2029-30
B4: Designation | C4: No. of Employees | D4: Salary per employee | E4: Total | F4: No. of Employees | G4: Salary per employee | H4: Total | I4: No. of Employees | J4: Salary per employee | K4: Total | L4: No. of Employees | M4: Salary per employee | N4: Total | O4: No. of Employees | P4: Salary per employee | Q4: Total
B5: Directors | C5: 2 | D5: 70000 | E5: =D5*C5 -> 140000 | F5: =C5*1 -> 2 | G5: =D5*1.1 -> 77000 | H5: =G5*F5 -> 154000 | I5: =F5*1 -> 2 | J5: =G5*1.1 -> 84700 | K5: =J5*I5 -> 169400 | L5: =I5*1 -> 2 | M5: =J5*1.1 -> 93170 | N5: =M5*L5 -> 186340 | O5: =L5*1 -> 2 | P5: =M5*1.1 -> 102487 | Q5: =P5*O5 -> 204974
B6: Catalogue & Category Manager | C6: 1 | D6: 40000 | E6: 40000 | F6: 5 | G6: =E6*1.1 -> 44000 | H6: =E6*1.5 -> 60000 | I6: 7.5 | J6: =H6*1.1 -> 66000 | K6: =H6*1.5 -> 90000 | L6: 11.25 | M6: =K6*1.1 -> 99000 | N6: =K6*1.5 -> 135000 | O6: 16.875 | P6: =N6*1.1 -> 148500 | Q6: =N6*1.5 -> 202500
B7: Technical Team | C7: 2 | D7: 70000 | E7: 140000 | F7: 5 | G7: 154000 | H7: =E7*1.5 -> 210000 | I7: 5 | J7: 231000 | K7: =H7*1.5 -> 315000 | L7: 5 | M7: 346500 | N7: =K7*1.5 -> 472500 | O7: 5 | P7: 519750 | Q7: 708750
B8: Sales and Operations | C8: 2 | D8: 40000 | E8: 80000 | F8: 4 | G8: 88000 | H8: =E8*1.5 -> 120000 | I8: 8 | J8: 132000 | K8: =H8*1.5 -> 180000 | L8: 12 | M8: 198000 | N8: =K8*1.5 -> 270000 | O8: 18 | P8: 297000 | Q8: 405000
B9: Delivery & Operations Staff | C9: 2 | D9: 20000 | E9: 40000 | F9: =C9*2 -> 4 | G9: 44000 | H9: =E9*2 -> 80000 | I9: 8 | J9: 88000 | K9: =H9*2 -> 160000 | L9: 16 | M9: 176000 | N9: =K9*2 -> 320000 | O9: 16 | P9: 352000 | Q9: =N9*2 -> 640000
E10: =SUM(E5:E9) -> 440000 | H10: =SUM(H5:H9) -> 624000 | K10: =SUM(K5:K9) -> 914400 | N10: =SUM(N5:N9) -> 1383840 | Q10: =SUM(Q5:Q9) -> 2161224
E11: =(E10*12) -> 5280000 | H11: =(H10*12) -> 7488000 | K11: =(K10*12) -> 10972800 | N11: =(N10*12) -> 16606080 | Q11: =(Q10*12) -> 25934688

Sheet Marketing Expense (hidden)
A1: Digital Media Marketing Expense | G1: 0.15 | H1: 0.3
A2: Particulars | B2: 2025-26 | C2: 2026-27 | D2: 2027-28 | E2: 2028-29 | F2: 2029-30
A3: Customers Onboarded | B3: 280.6880095 | C3: 352.8760922 | D3: 443.6406369 | E3: 557.7646374 | F3: 701.2632303
A4: Conversion Rate | B4: 0.0128 | C4: 0.01536 | D4: 0.018432 | E4: 0.0221184 | F4: 0.02654208
B5: =B3/B4 -> 21928.75074 | C5: 22973.70392 | D5: 24069.04497 | E5: 25217.22355 | F5: 26420.80916
A6: CTR (Click Through Rate) | B6: 0.06 | C6: 0.06 | D6: 0.06 | E6: 0.06 | F6: 0.06
A7: TOTAL | B7: =B5/B6 -> 365479.179 | C7: 382895.0653 | D7: 401150.7495 | E7: 420287.0592 | F7: 440346.8193
A9: Online marketing (Digital Marketing) | B9: 900000 | C9: =(B9+(B9*G1)) -> 1035000 | D9: 1345500
A10: Offline marketing (Offline deals with FM companies) | B10: 600000 | C10: =(B10+(B10*0.2)) -> 720000 | D10: =(C10+(C10*0.3)) -> 936000 | E10: =(D10+(D10*0.5)) -> 1404000
A11: Referral marketing | B11: =(150582670.608*0.008) -> 1204661.365 | C11: =(150582670.608*0.1) -> 15058267.06 | D11: =(150582670.608*0.008) -> 1204661.365 | E11: 1204661.365 | F11: 1204661.365
A12: Commision | B12: =(100*32000*4)*0.05 -> 640000
A13: Total marketing Spend | B13: =SUM(B9:B12) -> 3344661.365
